[Event "Late-Titled-Tuesday-Blitz-August-29-2023"]
[Site "Chess.com"]
[Date "2023.08.29"]
[Round "11"]
[White "dretch"]
[Black "zeitnot2006"]
[Result "0-1"]
[WhiteElo "2885"]
[BlackElo "2769"]
[TimeControl "180+1"]
[EndTime "16:05:25 PDT"]
[Termination "zeitnot2006 won by resignation"]

1. d4 {[%clk 0:03:00.9]} 1... Nf6 {[%clk 0:02:59.3]} 2. c4 {[%clk 0:03:01.3]}
2... e6 {[%clk 0:02:59.9]} 3. Nc3 {[%clk 0:02:59.3]} 3... d5 {[%clk 0:02:59]} 4.
cxd5 {[%clk 0:02:58.8]} 4... exd5 {[%clk 0:02:59.9]} 5. Bg5 {[%clk 0:02:58.7]}
5... Be7 {[%clk 0:02:59]} 6. e3 {[%clk 0:02:58.4]} 6... c6 {[%clk 0:02:59.5]} 7.
Bd3 {[%clk 0:02:57.9]} 7... h6 {[%clk 0:02:58.6]} 8. Bh4 {[%clk 0:02:53.4]} 8...
O-O {[%clk 0:02:58.6]} 9. Nge2 {[%clk 0:02:52.5]} 9... Nbd7 {[%clk 0:02:57.7]}
10. O-O {[%clk 0:02:51.8]} 10... Ne8 {[%clk 0:02:56.6]} 11. Bxe7 {[%clk
0:02:50.8]} 11... Qxe7 {[%clk 0:02:57.5]} 12. e4 {[%clk 0:02:39.9]} 12... dxe4
{[%clk 0:02:57]} 13. Bxe4 {[%clk 0:02:38.6]} 13... Nd6 {[%clk 0:02:55.5]} 14.
Bf3 {[%clk 0:02:33]} 14... Nf6 {[%clk 0:02:55.4]} 15. Re1 {[%clk 0:02:32]} 15...
Re8 {[%clk 0:02:45.8]} 16. Ng3 {[%clk 0:02:07.7]} 16... Qxe1+ {[%clk 0:02:45.2]}
17. Qxe1 {[%clk 0:02:07.9]} 17... Rxe1+ {[%clk 0:02:46.1]} 18. Rxe1 {[%clk
0:02:08.2]} 18... Kf8 {[%clk 0:02:46.9]} 19. d5 {[%clk 0:02:00.3]} 19... cxd5
{[%clk 0:02:40.9]} 20. Nxd5 {[%clk 0:01:58.8]} 20... Nxd5 {[%clk 0:02:39]} 21.
Bxd5 {[%clk 0:01:59.7]} 21... Bd7 {[%clk 0:02:33.9]} 22. Rd1 {[%clk 0:01:57.6]}
22... Rc8 {[%clk 0:02:09.4]} 23. h3 {[%clk 0:01:54.7]} 23... Ke7 {[%clk
0:02:05.9]} 24. Nh5 {[%clk 0:01:54.6]} 24... g6 {[%clk 0:01:59.1]} 25. Re1+
{[%clk 0:01:52.4]} 25... Kf8 {[%clk 0:01:58.4]} 26. Nf6 {[%clk 0:01:51.8]} 26...
Bc6 {[%clk 0:01:56.2]} 27. Bb3 {[%clk 0:01:38.6]} 27... Ne8 {[%clk 0:01:49.6]}
28. Ng4 {[%clk 0:01:32.7]} 28... h5 {[%clk 0:01:38.1]} 29. Ne5 {[%clk
0:01:32.3]} 29... Nd6 {[%clk 0:01:38.6]} 30. Rd1 {[%clk 0:01:12]} 30... Ke7
{[%clk 0:01:38.2]} 31. h4 {[%clk 0:01:03]} 31... Be8 {[%clk 0:01:29.4]} 32. Kh2
{[%clk 0:00:58.2]} 32... Rc5 {[%clk 0:01:26.6]} 33. Re1 {[%clk 0:00:54.6]} 33...
Kf6 {[%clk 0:01:14.6]} 34. Nd3 {[%clk 0:00:46.5]} 34... Rc7 {[%clk 0:01:14.2]}
35. Nf4 {[%clk 0:00:46]} 35... Bc6 {[%clk 0:01:09.9]} 36. Rc1 {[%clk 0:00:38.1]}
36... Rd7 {[%clk 0:00:59.4]} 37. Bd5 {[%clk 0:00:35.2]} 37... Bxd5 {[%clk
0:00:55.3]} 38. Nxd5+ {[%clk 0:00:35]} 38... Ke5 {[%clk 0:00:56]} 39. Ne3 {[%clk
0:00:30.7]} 39... Ne4 {[%clk 0:00:51.6]} 40. f3 {[%clk 0:00:26.7]} 40... Nf6
{[%clk 0:00:45.5]} 41. Kg3 {[%clk 0:00:25.4]} 41... Ke6 {[%clk 0:00:37.6]} 42.
Re1 {[%clk 0:00:20.8]} 42... Kd6 {[%clk 0:00:26]} 43. Kf4 {[%clk 0:00:18.8]}
43... Re7 {[%clk 0:00:16]} 44. Nc4+ {[%clk 0:00:18.1]} 44... Kd7 {[%clk
0:00:16.4]} 45. Ne5+ {[%clk 0:00:14.2]} 45... Ke8 {[%clk 0:00:15.9]} 46. Rd1
{[%clk 0:00:14.1]} 46... Re6 {[%clk 0:00:12.6]} 47. g4 {[%clk 0:00:13.6]} 47...
Rb6 {[%clk 0:00:09.8]} 48. b3 {[%clk 0:00:11.1]} 48... Ra6 {[%clk 0:00:06.6]}
49. a4 {[%clk 0:00:11]} 49... Rb6 {[%clk 0:00:07.2]} 50. Rd3 {[%clk 0:00:11.3]}
50... Rb4+ {[%clk 0:00:07.5]} 51. Kg5 {[%clk 0:00:11.4]} 51... Rb6 {[%clk
0:00:07.4]} 52. Kh6 {[%clk 0:00:09.4]} 52... Re6 {[%clk 0:00:06.3]} 53. Kg7
{[%clk 0:00:08.4]} 53... Rxe5 {[%clk 0:00:05.3]} 54. Kxf6 {[%clk 0:00:08.7]}
54... Re6+ {[%clk 0:00:05.6]} 55. Kg7 {[%clk 0:00:08.8]} 55... hxg4 {[%clk
0:00:05.3]} 56. fxg4 {[%clk 0:00:09.7]} 56... Re4 {[%clk 0:00:05.7]} 57. h5
{[%clk 0:00:10.2]} 57... gxh5 {[%clk 0:00:04.9]} 58. gxh5 {[%clk 0:00:11.1]}
58... Rg4+ {[%clk 0:00:05.2]} 59. Kf6 {[%clk 0:00:11.3]} 59... Rh4 {[%clk
0:00:04.6]} 60. Kg5 {[%clk 0:00:10.9]} 60... Rh1 {[%clk 0:00:05.2]} 61. h6
{[%clk 0:00:10.7]} 61... Rg1+ {[%clk 0:00:04]} 62. Kf5 {[%clk 0:00:11]} 62...
Rf1+ {[%clk 0:00:04.3]} 63. Ke5 {[%clk 0:00:11]} 63... Rh1 {[%clk 0:00:04.1]}
64. Kd6 {[%clk 0:00:10]} 64... Rxh6+ {[%clk 0:00:03.6]} 65. Kc7 {[%clk
0:00:10.3]} 65... Rb6 {[%clk 0:00:04]} 66. a5 {[%clk 0:00:08.9]} 66... Rb5
{[%clk 0:00:04.1]} 67. Kb8 {[%clk 0:00:09.3]} 67... Rxa5 {[%clk 0:00:03.7]} 68.
Kxb7 {[%clk 0:00:10]} 68... Ra3 {[%clk 0:00:04.2]} 69. Re3+ {[%clk 0:00:09.6]}
69... Kd7 {[%clk 0:00:04.2]} 70. Rf3 {[%clk 0:00:09.6]} 70... Ke6 {[%clk
0:00:04.4]} 71. Kc6 {[%clk 0:00:09.6]} 71... f5 {[%clk 0:00:04.6]} 72. Re3+
{[%clk 0:00:09.7]} 72... Kf6 {[%clk 0:00:04.9]} 73. Kc5 {[%clk 0:00:10.3]} 73...
f4 {[%clk 0:00:05.2]} 74. Rd3 {[%clk 0:00:09.9]} 74... Kf5 {[%clk 0:00:05.5]}
75. Kb4 {[%clk 0:00:10.1]} 75... Ra1 {[%clk 0:00:05.7]} 76. Rd8 {[%clk
0:00:09.8]} 76... f3 {[%clk 0:00:05.4]} 77. Rf8+ {[%clk 0:00:10.7]} 77... Ke4
{[%clk 0:00:05.9]} 78. Kc3 {[%clk 0:00:11.1]} 78... Ke3 {[%clk 0:00:05.8]} 79.
Re8+ {[%clk 0:00:11.6]} 79... Kf2 {[%clk 0:00:06.2]} 80. Kd2 {[%clk 0:00:11.7]}
80... Kg2 {[%clk 0:00:05.7]} 81. Rg8+ {[%clk 0:00:11.7]} 81... Kf1 {[%clk
0:00:05.6]} 82. Rf8 {[%clk 0:00:12]} 82... f2 {[%clk 0:00:05.5]} 83. Ke3 {[%clk
0:00:12.5]} 83... Re1+ {[%clk 0:00:05.7]} 84. Kf3 {[%clk 0:00:12.5]} 84... Rb1
{[%clk 0:00:06.2]} 85. Kg3 {[%clk 0:00:11.1]} 85... Rxb3+ {[%clk 0:00:06.2]} 86.
Kh2 {[%clk 0:00:11.9]} 86... Re3 {[%clk 0:00:04.5]} 87. Rf4 {[%clk 0:00:11.7]}
87... a5 {[%clk 0:00:04.3]} 88. Ra4 {[%clk 0:00:11.4]} 88... Rd3 {[%clk
0:00:03.1]} 89. Rxa5 {[%clk 0:00:11.5]} 89... Ke2 {[%clk 0:00:03.7]} 90. Ra2+
{[%clk 0:00:09.8]} 90... Rd2 {[%clk 0:00:04]} 91. Ra1 {[%clk 0:00:10.1]} 91...
f1=Q {[%clk 0:00:04.4]} 0-1

[Event "Late-Titled-Tuesday-Blitz-August-29-2023"]
[Site "Chess.com"]
[Date "2023.08.29"]
[Round "11"]
[White "DenizSeyhanoglu1"]
[Black "Giorno"]
[Result "1-0"]
[WhiteElo "2327"]
[BlackElo "2447"]
[TimeControl "180+1"]
[EndTime "16:05:28 PDT"]
[Termination "DenizSeyhanoglu1 won by checkmate"]

1. e4 {[%clk 0:03:00.9]} 1... g6 {[%clk 0:03:00.9]} 2. d4 {[%clk 0:02:56.1]}
2... Bg7 {[%clk 0:03:01.3]} 3. Nc3 {[%clk 0:02:56.5]} 3... d6 {[%clk 0:02:43]}
4. g3 {[%clk 0:02:56.3]} 4... a6 {[%clk 0:02:42.5]} 5. a4 {[%clk 0:02:54.6]}
5... b6 {[%clk 0:02:38.7]} 6. Bg2 {[%clk 0:02:54.1]} 6... Bb7 {[%clk 0:02:38.6]}
7. Nge2 {[%clk 0:02:53.3]} 7... e6 {[%clk 0:02:37]} 8. O-O {[%clk 0:02:52.6]}
8... Ne7 {[%clk 0:02:36.7]} 9. Be3 {[%clk 0:02:51.8]} 9... h6 {[%clk 0:02:30.6]}
10. h4 {[%clk 0:02:50.2]} 10... Nd7 {[%clk 0:02:29.7]} 11. Qd2 {[%clk
0:02:50.1]} 11... e5 {[%clk 0:02:24]} 12. d5 {[%clk 0:02:47.8]} 12... f5 {[%clk
0:02:22.6]} 13. h5 {[%clk 0:02:41.7]} 13... g5 {[%clk 0:02:19.4]} 14. f4 {[%clk
0:02:41]} 14... g4 {[%clk 0:01:55.3]} 15. fxe5 {[%clk 0:02:37.7]} 15... Nxe5
{[%clk 0:01:50.3]} 16. exf5 {[%clk 0:02:36.5]} 16... Nc4 {[%clk 0:01:48]} 17.
Qc1 {[%clk 0:02:34.6]} 17... Nxe3 {[%clk 0:01:45.1]} 18. Qxe3 {[%clk 0:02:35.5]}
18... O-O {[%clk 0:01:19.9]} 19. Nd4 {[%clk 0:02:33.2]} 19... Bxd4 {[%clk
0:01:11.1]} 20. Qxd4 {[%clk 0:02:34.1]} 20... Nxf5 {[%clk 0:01:11.5]} 21. Qxg4+
{[%clk 0:02:32.4]} 21... Qg5 {[%clk 0:01:09.1]} 22. Qxg5+ {[%clk 0:01:59.5]}
22... hxg5 {[%clk 0:01:10]} 23. g4 {[%clk 0:01:54]} 23... Ne3 {[%clk 0:01:09.2]}
24. Rxf8+ {[%clk 0:01:53.5]} 24... Rxf8 {[%clk 0:01:09.2]} 25. Be4 {[%clk
0:01:54.4]} 25... Nxg4 {[%clk 0:01:06.3]} 26. Re1 {[%clk 0:01:29.7]} 26... Kg7
{[%clk 0:00:58.7]} 27. Bg2 {[%clk 0:01:19.8]} 27... Ne5 {[%clk 0:00:57.5]} 28.
b3 {[%clk 0:01:11.7]} 28... Kh6 {[%clk 0:00:49.5]} 29. Ne4 {[%clk 0:00:59]}
29... Kxh5 {[%clk 0:00:45.1]} 30. c4 {[%clk 0:00:50.4]} 30... Kg6 {[%clk
0:00:34.8]} 31. Ng3 {[%clk 0:00:46.9]} 31... Rf4 {[%clk 0:00:27.6]} 32. Be4+
{[%clk 0:00:45.3]} 32... Kf7 {[%clk 0:00:24.6]} 33. Kg2 {[%clk 0:00:45.3]} 33...
Bc8 {[%clk 0:00:20.8]} 34. Rh1 {[%clk 0:00:43.9]} 34... Rh4 {[%clk 0:00:20.5]}
35. Rf1+ {[%clk 0:00:41.9]} 35... Kg7 {[%clk 0:00:20.8]} 36. Bf5 {[%clk
0:00:36]} 36... Bb7 {[%clk 0:00:19.3]} 37. Be6 {[%clk 0:00:35.2]} 37... Kg6
{[%clk 0:00:13.6]} 38. Rf8 {[%clk 0:00:31.8]} 38... b5 {[%clk 0:00:11.8]} 39.
cxb5 {[%clk 0:00:27.7]} 39... axb5 {[%clk 0:00:12.7]} 40. a5 {[%clk 0:00:28.2]}
40... Rd4 {[%clk 0:00:09]} 41. Rb8 {[%clk 0:00:25.1]} 41... Bxd5+ {[%clk
0:00:08.9]} 42. Bxd5 {[%clk 0:00:22.1]} 42... Rxd5 {[%clk 0:00:09.8]} 43. a6
{[%clk 0:00:21.7]} 43... Rd2+ {[%clk 0:00:09.4]} 44. Kf1 {[%clk 0:00:20.5]}
44... Ra2 {[%clk 0:00:09.4]} 45. Ra8 {[%clk 0:00:16.2]} 45... Nc6 {[%clk
0:00:09]} 46. Ne4 {[%clk 0:00:11.8]} 46... d5 {[%clk 0:00:08.6]} 47. Nc3 {[%clk
0:00:11.6]} 47... Ra1+ {[%clk 0:00:09]} 48. Kf2 {[%clk 0:00:11]} 48... d4 {[%clk
0:00:09]} 49. Nxb5 {[%clk 0:00:11.2]} 49... Ra2+ {[%clk 0:00:08.9]} 50. Kf3
{[%clk 0:00:10.8]} 50... d3 {[%clk 0:00:08.8]} 51. a7 {[%clk 0:00:10.3]} 51...
d2 {[%clk 0:00:08.6]} 52. Ke2 {[%clk 0:00:11.2]} 52... Ra5 {[%clk 0:00:04.6]}
53. Rg8+ {[%clk 0:00:09]} 53... Kf7 {[%clk 0:00:04.3]} 54. a8=Q {[%clk
0:00:09.9]} 54... Rxa8 {[%clk 0:00:04.2]} 55. Rxa8 {[%clk 0:00:10.8]} 55... g4
{[%clk 0:00:04.6]} 56. Kxd2 {[%clk 0:00:10.4]} 56... g3 {[%clk 0:00:04.9]} 57.
Ra1 {[%clk 0:00:09.9]} 57... Ke6 {[%clk 0:00:05.4]} 58. Rg1 {[%clk 0:00:09.8]}
58... Kd5 {[%clk 0:00:05.7]} 59. Rxg3 {[%clk 0:00:09.6]} 59... Kc5 {[%clk
0:00:06.6]} 60. Rg5+ {[%clk 0:00:08.3]} 60... Kb6 {[%clk 0:00:06.1]} 61. Kc3
{[%clk 0:00:07.6]} 61... Nb8 {[%clk 0:00:05.1]} 62. Nd4 {[%clk 0:00:07.4]} 62...
Nd7 {[%clk 0:00:05.1]} 63. Rg6+ {[%clk 0:00:07.3]} 63... Kb7 {[%clk 0:00:05.6]}
64. Rg7 {[%clk 0:00:07.6]} 64... Nb6 {[%clk 0:00:06.2]} 65. Nb5 {[%clk 0:00:07]}
65... Nd5+ {[%clk 0:00:06]} 66. Kd4 {[%clk 0:00:07.3]} 66... Kc6 {[%clk
0:00:06.9]} 67. Nc3 {[%clk 0:00:04.7]} 67... Nb6 {[%clk 0:00:06.3]} 68. Rg6+
{[%clk 0:00:04.5]} 68... Kb7 {[%clk 0:00:06.8]} 69. Rxb6+ {[%clk 0:00:04]} 69...
Kxb6 {[%clk 0:00:06.9]} 70. Kc4 {[%clk 0:00:04.2]} 70... Kc6 {[%clk 0:00:07]}
71. b4 {[%clk 0:00:04.2]} 71... Kb6 {[%clk 0:00:07.6]} 72. Na4+ {[%clk
0:00:04.2]} 72... Kc6 {[%clk 0:00:07.5]} 73. Nb2 {[%clk 0:00:02.3]} 73... Kb7
{[%clk 0:00:08.4]} 74. Kc5 {[%clk 0:00:02.2]} 74... Kb8 {[%clk 0:00:08.3]} 75.
Nc4 {[%clk 0:00:02.4]} 75... Kb7 {[%clk 0:00:09.2]} 76. Na5+ {[%clk 0:00:02.6]}
76... Kb8 {[%clk 0:00:10.1]} 77. Kc6 {[%clk 0:00:02.7]} 77... Kc8 {[%clk
0:00:11]} 78. Nc4 {[%clk 0:00:02.7]} 78... Kb8 {[%clk 0:00:11.9]} 79. Ne3 {[%clk
0:00:03.1]} 79... Kc8 {[%clk 0:00:12.8]} 80. Nd5 {[%clk 0:00:03.4]} 80... Kb8
{[%clk 0:00:13.7]} 81. Nxc7 {[%clk 0:00:03.7]} 81... Ka7 {[%clk 0:00:14.6]} 82.
Nd5 {[%clk 0:00:02.9]} 82... Kb8 {[%clk 0:00:15.5]} 83. Ne3 {[%clk 0:00:03.1]}
83... Ka7 {[%clk 0:00:16.4]} 84. b5 {[%clk 0:00:03]} 84... Kb8 {[%clk
0:00:17.3]} 85. Kb6 {[%clk 0:00:03.4]} 85... Kc8 {[%clk 0:00:18.2]} 86. Ka7
{[%clk 0:00:03.6]} 86... Kc7 {[%clk 0:00:19.1]} 87. b6+ {[%clk 0:00:04.2]} 87...
Kc6 {[%clk 0:00:20]} 88. b7 {[%clk 0:00:05.1]} 88... Kc5 {[%clk 0:00:19.9]} 89.
b8=Q {[%clk 0:00:06]} 89... Kd4 {[%clk 0:00:20.8]} 90. Kb6 {[%clk 0:00:06.2]}
90... Kd3 {[%clk 0:00:21.7]} 91. Qc7 {[%clk 0:00:06.4]} 91... Ke2 {[%clk
0:00:22.6]} 92. Nf5 {[%clk 0:00:06.7]} 92... Kd3 {[%clk 0:00:23.5]} 93. Ng7
{[%clk 0:00:07.6]} 93... Ke4 {[%clk 0:00:24.1]} 94. Ne8 {[%clk 0:00:08.5]} 94...
Kd5 {[%clk 0:00:24.7]} 95. Qd6+ {[%clk 0:00:07.9]} 95... Ke4 {[%clk 0:00:25.6]}
96. Kc5 {[%clk 0:00:08.3]} 96... Ke3 {[%clk 0:00:26.5]} 97. Qe5+ {[%clk
0:00:08.3]} 97... Kf3 {[%clk 0:00:27.4]} 98. Kc4 {[%clk 0:00:09]} 98... Kg4
{[%clk 0:00:28.1]} 99. Kd4 {[%clk 0:00:08.9]} 99... Kf3 {[%clk 0:00:29]} 100.
Qf5+ {[%clk 0:00:08.9]} 100... Kg2 {[%clk 0:00:29.9]} 101. Ke3 {[%clk 0:00:09]}
101... Kg3 {[%clk 0:00:30.8]} 102. Qg5+ {[%clk 0:00:09.3]} 102... Kh2 {[%clk
0:00:31.7]} 103. Kf2 {[%clk 0:00:10]} 103... Kh1 {[%clk 0:00:32.5]} 104. Qh5#
{[%clk 0:00:10.9]} 1-0